lending/lending_fUSD_20250917
["ID","MTS","AMOUNT","RATE_DAILY","PERIOD"]
[385914105,1758131502933,-400.0,0.00025661,2]
[385914106,1758131502943,-400.0,0.00025661,2]
[385914107,1758131502954,-400.0,0.00025661,2]
[385914108,1758131502964,-412.4,0.00025661,2]
[385914109,1758131502974,-400.0,0.00025661,2]
[385914110,1758131502987,-400.0,0.00025661,2]
[385914111,1758131502996,-400.0,0.00025661,2]
[385914112,1758131503006,-400.0,0.00025661,2]
[385914113,1758131503016,-400.0,0.00025661,2]
[385914114,1758131503027,-525.95,0.00025661,2]
[385914115,1758131503036,-400.0,0.00025661,2]
[385914116,1758131503046,-400.0,0.00025661,2]
[385914117,1758131503057,-400.0,0.00025661,2]
[385914118,1758131503067,-400.0,0.00025661,2]
[385914119,1758131503077,-400.0,0.00025661,2]
[385914120,1758131503086,-400.0,0.00025661,2]
[385914121,1758131503096,-500.0,0.00025661,14]
[385914122,1758131503105,-400.0,0.00025661,2]
[385914123,1758131503114,-400.0,0.00025661,2]
[385914124,1758131503124,-400.0,0.00025661,2]
[385914125,1758131503133,-405.32339076,0.00025661,2]
[385914126,1758131503142,-400.0,0.00025661,2]
[385914127,1758131503152,-400.0,0.00025661,2]
[385914128,1758131503162,-400.0,0.00025661,2]
[385914129,1758131503171,-400.0,0.00025661,2]
[385914130,1758131503182,-400.0,0.00025661,2]
[385914131,1758131503192,-400.0,0.00025661,2]
[385914132,1758131503201,-400.0,0.00025661,2]
[385914133,1758131503407,-420.64231381,0.00025661,2]
[385914134,1758131503422,-400.0,0.00025661,2]
[385914135,1758131503435,-416.61206944,0.00025661,2]
[385914136,1758131503448,-400.0,0.00025661,2]
[385914137,1758131503458,-400.0,0.00025661,2]
[385914138,1758131503468,-400.0,0.00025661,2]
[385914139,1758131503478,-400.0,0.00025661,2]
[385914140,1758131503488,-430.36,0.00025661,2]
[385914141,1758131503497,-588.81,0.00025661,2]
[385914142,1758131503508,-548.28222163,0.00025661,2]
[385914143,1758131503517,-400.0,0.00025661,2]
[385914144,1758131503527,-400.0,0.00025661,2]
[385914145,1758131503537,-771.14,0.00025661,2]
[385914146,1758131503546,-400.0,0.00025661,2]
[385914147,1758131503557,-400.0,0.00025661,2]
[385914148,1758131503567,-400.0,0.00025661,2]
[385914149,1758131503577,-400.0,0.00025661,2]
[385914150,1758131503587,-400.0,0.00025661,2]
[385914151,1758131503597,-400.0,0.00025661,2]
[385914152,1758131503607,-400.0,0.00025661,2]
[385914153,1758131503617,-943.34,0.00025662,2]
[385914154,1758131503627,-4018.49,0.00025662,2]
[385914155,1758131503636,-701.65,0.00025662,2]
[385914156,1758131503646,-1891.23,0.00025662,2]
[385914157,1758131503656,-500.0,0.00025669,2]
[385914158,1758131503665,-500.0,0.00025669,2]
[385914159,1758131503675,-500.0,0.00025669,2]
[385914160,1758131503686,-565.0,0.00025669,2]
[385914161,1758131503696,-500.0,0.00025669,2]
[385914162,1758131503706,-3122.0,0.00025669,2]
[385914163,1758131503715,-487.0,0.00025669,2]
[385914164,1758131503725,-500.0,0.00025669,2]
[385914165,1758131503734,-500.0,0.00025671,2]
[385914166,1758131503743,-2406.73,0.00025671,2]
[385914167,1758131503753,-1235.05,0.00025671,2]
[385914168,1758131503763,-567.49,0.00025671,2]
[385914169,1758131503772,-400.0,0.00025671,2]
[385914170,1758131503782,-1147.59,0.00025671,2]
[385914171,1758131503792,-474.51,0.00025671,2]
[385914172,1758131503801,-400.0,0.00025671,2]
[385914173,1758131503813,-1412.24,0.00025671,2]
[385914174,1758131503822,-706.63,0.00025671,2]
[385914175,1758131503832,-2417.66,0.00025671,2]
[385914176,1758131503842,-524.13,0.00025671,2]
[385914177,1758131503851,-573.54,0.00025671,2]
[385914178,1758131503861,-948.73,0.00025671,2]
[385914179,1758131503871,-2346.09,0.00025671,2]
[385914180,1758131503881,-4760.55,0.00025671,2]
[385914181,1758131503890,-400.0,0.00025671,2]
[385914182,1758131503900,-666.56,0.00025671,2]
[385914183,1758131503910,-1032.93,0.00025671,2]
[385914184,1758131503919,-821.53,0.00025671,2]
[385914185,1758131503929,-967.11,0.00025671,2]
[385914186,1758131503938,-1252.99,0.00025671,2]
[385914187,1758131503948,-4624.33,0.00025671,2]
[385914188,1758131503957,-704.15,0.00025671,2]
[385914189,1758131503967,-400.0,0.00025671,2]
[385914190,1758131503977,-649.13,0.00025671,2]
[385914191,1758131503988,-620.07,0.00025671,2]
[385914192,1758131503998,-4154.54,0.00025671,2]
[385914193,1758131504007,-715.62,0.00025671,2]
[385914194,1758131504017,-400.0,0.00025671,2]
[385914195,1758131504026,-532.67,0.00025671,2]
[385914196,1758131504035,-400.0,0.00025672,2]
[385914197,1758131504044,-402.71841793,0.00025672,2]
[385914198,1758131504053,-400.0,0.00025672,2]
[385914199,1758131504063,-325.66537148,0.00025672,2]
[385914200,1758131504072,-166.76613974,0.00025672,2]
[385914201,1758131504081,-400.0,0.00025672,2]
[385914202,1758131504091,-400.0,0.00025672,2]
[385914203,1758131504100,-406.81782572,0.00025672,2]
[385914204,1758131504110,-285.09782253,0.00025672,2]
[385914205,1758131504126,-400.0,0.00025672,2]
[385914206,1758131504136,-400.0,0.00025672,2]
[385914207,1758131504146,-400.0,0.00025672,2]
[385914208,1758131504156,-400.0,0.00025672,2]
[385914209,1758131504166,-610.56,0.00025672,2]
[385914210,1758131504176,-402.28759649,0.00025672,2]
[385914211,1758131504185,-400.0,0.00025672,2]
[385914212,1758131504195,-400.0,0.00025672,2]
[385914213,1758131504207,-400.0,0.00025672,2]
[385914214,1758131504219,-536.68,0.00025672,2]
[385914215,1758131504229,-400.0,0.00025672,2]
[385914216,1758131504239,-953.64,0.00025672,2]
[385914217,1758131504249,-400.0,0.00025672,2]
[385914218,1758131504259,-653.84,0.00025672,2]
[385914219,1758131504268,-432.74,0.00025672,2]
[385914220,1758131504278,-400.0,0.00025672,2]
[385914221,1758131504288,-631.73,0.00025672,2]
[385914222,1758131504297,-1268.84,0.00025672,2]
[385914223,1758131504308,-400.0,0.00025672,2]
[385914224,1758131504318,-400.0,0.00025672,2]
[385914225,1758131504328,-426.24,0.00025672,2]
[385914226,1758131504338,-540.01,0.00025672,2]
[385914227,1758131504347,-646.55,0.00025672,2]
[385914228,1758131504357,-400.0,0.00025672,2]
[385914229,1758131504367,-438.7,0.00025672,2]
[385914230,1758131504377,-400.0,0.00025672,2]
[385914231,1758131504387,-400.0,0.00025672,2]
[385914232,1758131504397,-400.0,0.00025672,2]
[385914233,1758131504407,-400.0,0.00025672,2]
[385914234,1758131504418,-421.94,0.00025672,2]
[385914235,1758131504427,-400.0,0.00025672,2]
[385914236,1758131504437,-766.6,0.00025672,2]
[385914237,1758131504447,-706.89,0.00025672,2]
[385914238,1758131504459,-473.1,0.00025672,2]
[385914239,1758131504469,-400.0,0.00025672,2]
[385914240,1758131504479,-749.15,0.00025672,2]
[385914241,1758131504492,-400.0,0.00025672,2]
[385914242,1758131504502,-656.86,0.00025672,2]
[385914243,1758131504511,-400.0,0.00025672,2]
[385914244,1758131504522,-400.0,0.00025672,2]
[385914245,1758131504532,-400.0,0.00025672,2]
[385914246,1758131504541,-400.0,0.00025672,2]
[385914247,1758131504550,-410.22,0.00025672,2]
[385914248,1758131504561,-400.0,0.00025672,2]
[385914249,1758131504577,-400.0,0.00025672,2]
[385914250,1758131504586,-400.0,0.00025672,2]
[385914251,1758131504596,-508.08,0.00025672,2]
[385914252,1758131504605,-964.24,0.00025672,2]
[385914253,1758131504615,-400.0,0.00025672,2]
[385914254,1758131504625,-466.34,0.00025672,2]
[385914255,1758131504635,-585.64,0.00025672,2]
[385914256,1758131504649,-488.75,0.00025672,2]
[385914257,1758131504659,-409.70018951,0.00025672,2]
[385914258,1758131504668,-637.19,0.00025672,2]
[385914259,1758131504679,-1125.7,0.00025672,2]
[385914260,1758131504688,-484.92,0.00025672,2]
[385914261,1758131504698,-529.65,0.00025672,2]
[385914262,1758131504708,-400.0,0.00025672,2]
[385914263,1758131504718,-3941.99,0.00025672,2]
[385914264,1758131504727,-401.11,0.00025672,2]
[385914265,1758131504737,-763.34,0.00025672,2]
[385914266,1758131504747,-400.0,0.00025672,2]
[385914267,1758131504757,-400.0,0.00025672,2]
[385914268,1758131504767,-400.0,0.00025672,2]
[385914269,1758131504777,-400.0,0.00025672,2]
[385914270,1758131504787,-400.0,0.00025672,2]
[385914271,1758131504797,-423.2,0.00025672,2]
[385914272,1758131504808,-800.0,0.00025672,2]
[385914273,1758131504818,-591.41,0.00025672,2]
[385914274,1758131504828,-400.0,0.00025672,2]
[385914275,1758131504837,-530.36,0.00025672,2]
[385914276,1758131504847,-664.15,0.00025672,2]
[385914277,1758131504857,-409.34,0.00025672,2]
[385914278,1758131504867,-400.0,0.00025672,2]
[385914279,1758131504876,-400.0,0.00025672,2]
[385914280,1758131504886,-543.58,0.00025672,2]
[385914281,1758131504896,-606.68,0.00025672,2]
[385914282,1758131504906,-528.77,0.00025672,2]
[385914283,1758131504916,-511.5,0.00025672,2]
[385914284,1758131504926,-441.76,0.00025672,2]
[385914285,1758131504935,-405.81,0.00025672,2]
[385914286,1758131504945,-893.58,0.00025672,2]
[385914287,1758131504955,-491.22,0.00025672,2]
[385914288,1758131504965,-610.77,0.00025672,2]
[385914289,1758131504975,-481.72,0.00025672,2]
[385914290,1758131504989,-400.0,0.00025672,2]
[385914291,1758131505000,-600.14,0.00025672,2]
[385914292,1758131505011,-1142.36,0.00025672,2]
[385914293,1758131505020,-400.0,0.00025672,2]
[385914294,1758131505030,-450.52,0.00025672,2]
[385914295,1758131505041,-687.67,0.00025672,2]
[385914296,1758131505051,-603.68,0.00025672,2]
[385914297,1758131505063,-489.45,0.00025672,2]
[385914298,1758131505074,-400.0,0.00025672,2]
[385914299,1758131505084,-688.0,0.00025672,2]
[385914300,1758131505094,-572.92,0.00025672,2]
[385914301,1758131505104,-537.91,0.00025672,2]
[385914302,1758131505114,-550.77,0.00025672,2]
[385914303,1758131505124,-671.22,0.00025672,2]
[385914304,1758131505134,-400.0,0.00025672,2]
[385914305,1758131505143,-605.67,0.00025672,2]
[385914306,1758131505153,-956.98,0.00025672,2]
[385914307,1758131505163,-672.08,0.00025672,2]
[385914308,1758131505173,-400.0,0.00025672,2]
[385914309,1758131505182,-527.21,0.00025672,2]
[385914310,1758131505193,-400.0,0.00025682,2]
[385914311,1758131505202,-270.36087401,0.00025682,2]
[385914312,1758131505212,-450.83,0.00025682,2]
[385914313,1758131505222,-400.0,0.00025682,2]
[385914314,1758131505231,-808.45,0.00025682,2]
[385914315,1758131505241,-476.42355515,0.00025682,2]
[385914316,1758131505251,-400.0,0.00025682,2]
[385914317,1758131505260,-460.51,0.00025682,2]
[385914318,1758131505270,-390.73508539,0.00025682,2]
[385914319,1758131505279,-400.0,0.00025682,2]
[385914320,1758131505290,-671.52,0.00025682,2]
[385914321,1758131505300,-400.0,0.00025682,2]
[385914322,1758131505311,-682.44,0.00025682,2]
[385914323,1758131505321,-748.84,0.00025682,2]
[385914324,1758131505331,-400.0,0.00025682,2]
[385914325,1758131505342,-422.58,0.00025682,2]
[385914326,1758131505352,-916.63,0.00025682,2]
[385914327,1758131505364,-876.13,0.00025682,2]
[385914328,1758131505375,-752.91,0.00025682,2]
[385914329,1758131505386,-400.0,0.00025682,2]
[385914330,1758131505395,-673.53,0.00025682,2]
[385914331,1758131505405,-617.21,0.00025682,2]
[385914332,1758131505415,-552.13,0.00025682,2]
[385914333,1758131505424,-772.46,0.00025682,2]
[385914334,1758131505433,-400.0,0.00025682,2]
[385914335,1758131505443,-694.05,0.00025682,2]
[385914336,1758131505452,-463.11,0.00025682,2]
[385914337,1758131505462,-512.35,0.00025682,2]
[385914338,1758131505471,-406.51,0.00025682,2]
[385914339,1758131505481,-807.12,0.00025682,2]
[385914340,1758131505490,-408.51,0.00025682,2]
[385914341,1758131505500,-400.0,0.00025682,2]
[385914342,1758131505509,-909.64,0.00025682,2]
[385914343,1758131505519,-400.0,0.00025682,2]
[385914344,1758131505528,-487.21,0.00025682,2]
[385914345,1758131505537,-400.0,0.00025682,2]
[385914346,1758131505548,-739.38,0.00025682,2]
[385914347,1758131505558,-400.0,0.00025682,2]
[385914348,1758131505568,-487.4,0.00025682,2]
[385914349,1758131505579,-400.0,0.00025682,2]
[385914350,1758131505588,-400.0,0.00025682,2]
[385914351,1758131505598,-507.67,0.00025682,2]
[385914352,1758131505608,-468.69,0.00025682,2]
[385914353,1758131505617,-465.98,0.00025682,2]
[385914354,1758131505628,-684.11,0.00025682,2]
[385914355,1758131505638,-400.0,0.00025682,2]
[385914356,1758131505647,-400.0,0.00025682,2]
[385914357,1758131505657,-400.0,0.00025682,2]
[385914358,1758131505667,-590.87,0.00025682,2]
[385914359,1758131505677,-490.07,0.00025682,2]
[385914360,1758131505687,-400.0,0.00025682,2]
[385914361,1758131505696,-400.0,0.00025682,2]
[385914362,1758131505705,-400.0,0.00025682,2]
[385914363,1758131505715,-218.40711827,0.00025682,2]
[385914364,1758131505725,-400.0,0.00025682,2]
[385914365,1758131505735,-615.91,0.00025682,2]
[385914366,1758131505745,-400.0,0.00025682,2]
[385914367,1758131505754,-400.0,0.00025682,2]
[385914368,1758131505764,-400.0,0.00025682,2]
[385914369,1758131505775,-400.0,0.00025682,2]
[385914370,1758131505785,-460.04,0.00025682,2]
[385914371,1758131505794,-400.0,0.00025682,2]
[385914372,1758131505804,-400.0,0.00025682,2]
[385914373,1758131505814,-444.61,0.00025682,2]
[385914374,1758131505824,-457.40770742,0.00025682,2]
[385914375,1758131505834,-460.62,0.00025682,2]
[385914376,1758131505843,-281.29609444,0.00025682,2]
[385914377,1758131505853,-400.0,0.00025682,2]
[385914378,1758131505863,-400.0,0.00025682,2]
[385914379,1758131505873,-438.44,0.00025682,2]
[385914380,1758131505885,-557.59,0.00025682,2]
[385914381,1758131505982,-421.98495699,0.00025682,2]
[385914382,1758131505993,-400.0,0.00025682,2]
[385914383,1758131506003,-209.99773636,0.00025682,2]
[385914384,1758131506013,-400.0,0.00025682,2]
[385914385,1758131506023,-631.33,0.00025682,2]
[385914386,1758131506034,-400.0,0.00025682,2]
[385914387,1758131506044,-720.58,0.00025682,2]
[385914388,1758131506053,-392.51843077,0.00025682,2]
[385914389,1758131506064,-400.0,0.00025682,2]
[385914390,1758131506075,-447.22,0.00025682,2]
[385914391,1758131506085,-456.92,0.00025682,2]
[385914392,1758131506095,-400.0,0.00025682,2]
[385914393,1758131506104,-1127.27,0.00025682,2]
[385914394,1758131506114,-400.0,0.00025682,2]
[385914395,1758131506123,-502.01,0.00025682,2]
[385914396,1758131506133,-867.5,0.00025682,2]
[385914397,1758131506142,-422.92,0.00025682,2]
[385914398,1758131506151,-400.0,0.00025682,2]
[385914399,1758131506161,-502.56,0.00025682,2]
[385914400,1758131506170,-492.25,0.00025682,2]
[385914401,1758131506180,-400.0,0.00025682,2]
[385914402,1758131506189,-400.0,0.00025682,2]
[385914403,1758131506198,-400.0,0.00025682,2]
[385914404,1758131506207,-400.0,0.00025682,2]
[385914405,1758131506218,-671.57,0.00025682,2]
[385914406,1758131506227,-284.92787292,0.00025682,2]
[385914407,1758131506238,-480.06,0.00025682,2]
[385914408,1758131506247,-815.91,0.00025682,2]
[385914409,1758131506257,-1119.25,0.00025682,2]
[385914410,1758131506267,-400.0,0.00025682,2]
[385914411,1758131506276,-399.01981387,0.00025682,2]
[385914412,1758131506286,-400.0,0.00025682,2]
[385914413,1758131506296,-928.99,0.00025682,2]
[385914414,1758131506307,-584.06,0.00025682,2]
[385914415,1758131506316,-509.92,0.00025682,2]
[385914416,1758131506326,-400.0,0.00025682,2]
[385914417,1758131506335,-400.0,0.00025682,2]
[385914418,1758131506346,-400.0,0.00025682,2]
[385914419,1758131506356,-1104.61,0.00025682,2]
[385914420,1758131506366,-281.20439871,0.00025682,2]
[385914421,1758131506376,-422.63,0.00025682,2]
[385914422,1758131506386,-400.0,0.00025682,2]
[385914423,1758131506396,-472.2,0.00025682,2]
[385914424,1758131506405,-400.0,0.00025682,2]
[385914425,1758131506416,-400.0,0.00025682,2]
[385914426,1758131506426,-626.4,0.00025682,2]
[385914427,1758131506435,-400.0,0.00025682,2]
[385914428,1758131506444,-400.0,0.00025682,2]
[385914429,1758131506454,-400.0,0.00025682,2]
[385914430,1758131506464,-400.0,0.00025682,2]
[385914431,1758131506474,-400.0,0.00025682,2]
[385914432,1758131506484,-629.4,0.00025682,2]
[385914433,1758131506494,-457.35,0.00025682,2]
[385914434,1758131506504,-771.83,0.00025682,2]
[385914435,1758131506513,-446.12,0.00025682,2]
[385914436,1758131506523,-400.0,0.00025682,2]
[385914437,1758131506532,-400.0,0.00025682,2]
[385914438,1758131506541,-485.9,0.00025682,2]
[385914439,1758131506552,-400.0,0.00025682,2]
[385914440,1758131506562,-502.41,0.00025682,2]
[385914441,1758131506572,-572.43,0.00025682,2]
[385914442,1758131506582,-575.82,0.00025682,2]
[385914443,1758131506592,-400.0,0.00025682,2]
[385914444,1758131506601,-577.21,0.00025682,2]
[385914445,1758131506611,-423.94242153,0.00025682,2]
[385914446,1758131506621,-445.85165956,0.00025682,2]
[385914447,1758131506630,-609.47,0.00025682,2]
[385914448,1758131506640,-697.32,0.00025682,2]
[385914449,1758131506650,-384.72872819,0.00025682,2]
[385914450,1758131506660,-534.9,0.00025682,2]
[385914451,1758131506670,-791.84,0.00025682,2]
[385914452,1758131506679,-631.56,0.00025682,2]
[385914453,1758131506689,-668.11,0.00025682,2]
[385914454,1758131506699,-400.0,0.00025682,2]
[385914455,1758131506709,-400.0,0.00025682,2]
[385914456,1758131506719,-445.18,0.00025682,2]
[385914457,1758131506728,-400.0,0.00025682,2]
[385914458,1758131506738,-400.0,0.00025682,2]
[385914459,1758131506747,-435.28,0.00025682,2]
[385914460,1758131506757,-589.94,0.00025682,2]
[385914461,1758131506767,-400.0,0.00025682,2]
[385914462,1758131506778,-408.88,0.00025682,2]
[385914463,1758131506788,-400.0,0.00025682,2]
[385914464,1758131506798,-834.3,0.00025682,2]
[385914465,1758131506808,-400.0,0.00025682,2]
[385914466,1758131506817,-400.0,0.00025682,2]
[385914467,1758131506827,-647.06,0.00025682,2]
[385914468,1758131506837,-400.0,0.00025682,2]
[385914469,1758131506846,-400.0,0.00025682,2]
[385914470,1758131506856,-1362.11,0.00025682,2]
[385914471,1758131506866,-400.0,0.00025682,2]
[385914472,1758131506875,-400.0,0.00025682,2]
[385914473,1758131506885,-3004.05,0.00025682,2]
[385914474,1758131506894,-400.0,0.00025682,2]
[385914475,1758131506904,-623.62,0.00025682,2]
[385914476,1758131506913,-652.72,0.00025682,2]
[385914477,1758131506923,-400.0,0.00025682,2]
[385914478,1758131506933,-400.0,0.00025682,2]
[385914479,1758131506943,-400.0,0.00025682,2]
[385914480,1758131506953,-441.69,0.00025682,2]
[385914481,1758131506963,-440.33,0.00025682,2]
[385914482,1758131506973,-617.06,0.00025682,2]
[385914483,1758131506983,-400.0,0.00025682,2]
[385914484,1758131506996,-400.0,0.00025682,2]
[385914485,1758131507006,-783.59,0.00025682,2]
[385914486,1758131507015,-529.36,0.00025682,2]
[385914487,1758131507025,-851.11,0.00025682,2]
[385914488,1758131507036,-400.0,0.00025682,2]
[385914489,1758131507045,-850.01,0.00025682,2]
[385914490,1758131507055,-2019.89,0.00025682,2]
[385914491,1758131507067,-610.69,0.00025682,2]
[385914492,1758131507077,-400.0,0.00025682,2]
[385914493,1758131507087,-879.71,0.00025682,2]
[385914494,1758131507099,-400.0,0.00025682,2]
[385914495,1758131507111,-400.0,0.00025682,2]
[385914496,1758131507122,-400.0,0.00025682,2]
[385914497,1758131507133,-1077.56,0.00025682,2]
[385914498,1758131507143,-1151.34,0.00025682,2]
[385914499,1758131507153,-400.0,0.00025682,2]
[385914500,1758131507162,-563.26,0.00025682,2]
[385914501,1758131507173,-662.04,0.00025682,2]
[385914502,1758131507182,-770.48,0.00025682,2]
[385914503,1758131507191,-575.67,0.00025682,2]
[385914504,1758131507202,-858.88,0.00025682,2]
[385914505,1758131507213,-400.0,0.00025682,2]
[385914506,1758131507222,-566.71,0.00025682,2]
[385914507,1758131507233,-430.3221829,0.00025682,2]
[385914508,1758131507241,-400.0,0.00025682,2]
[385914509,1758131507251,-500.0,0.00025682,2]
[385914510,1758131507260,-500.0,0.00025683,2]
[385914511,1758131507269,-500.0,0.00025683,2]
[385914512,1758131507279,-400.0,0.00025683,2]
[385914513,1758131507289,-400.0,0.00025683,2]
[385914514,1758131507298,-400.0,0.00025683,2]
[385914515,1758131507308,-400.0,0.00025683,2]
[385914516,1758131507317,-400.0,0.00025683,2]
[385914517,1758131507327,-451.8998475,0.00025683,2]
[385914518,1758131507336,-400.0,0.00025683,2]
[385914519,1758131507346,-459.42903818,0.00025683,2]
[385914520,1758131507355,-400.0,0.00025683,2]
[385914521,1758131507365,-400.0,0.00025683,2]
[385914522,1758131507375,-400.0,0.00025683,2]
[385914523,1758131507384,-400.0,0.00025683,2]
[385914524,1758131507393,-1177.74,0.00025683,2]
[385914525,1758131507403,-400.0,0.00025683,2]
[385914526,1758131507412,-400.0,0.00025683,2]
[385914527,1758131507422,-400.0,0.00025683,2]
[385914528,1758131507431,-400.0,0.00025683,2]
[385914529,1758131507442,-400.0,0.00025683,2]
[385914530,1758131507451,-400.0,0.00025683,2]
[385914531,1758131507461,-400.0,0.00025683,2]
[385914532,1758131507470,-400.0,0.00025683,2]
[385914533,1758131507480,-525.93,0.00025683,2]
[385914534,1758131507489,-400.0,0.00025683,2]
[385914535,1758131507499,-406.03,0.00025683,2]
[385914536,1758131507508,-410.52771647,0.00025683,2]
[385914537,1758131507518,-599.36,0.00025683,2]
[385914538,1758131507527,-400.0,0.00025683,2]
[385914539,1758131507537,-400.0,0.00025683,2]
[385914540,1758131507546,-400.0,0.00025683,2]
[385914541,1758131507555,-400.0,0.00025683,2]
[385914542,1758131507569,-400.0,0.00025683,2]
[385914543,1758131507579,-400.0,0.00025683,2]
[385914544,1758131507588,-400.0,0.00025683,2]
[385914545,1758131507597,-400.0,0.00025683,2]
[385914546,1758131507607,-201.87632458,0.00025683,2]
[385914547,1758131507617,-400.0,0.00025683,2]
[385914548,1758131507626,-400.0,0.00025683,2]
[385914549,1758131507636,-429.26320675,0.00025683,2]
[385914550,1758131507645,-400.0,0.00025683,2]
[385914551,1758131507655,-729.55,0.00025683,2]
[385914552,1758131507664,-408.87014062,0.00025683,2]
[385914553,1758131507674,-400.0,0.00025683,2]
[385914554,1758131507684,-400.0,0.00025683,2]
[385914555,1758131507694,-400.0,0.00025683,2]
[385914556,1758131507705,-615.12,0.00025683,2]
[385914557,1758131507715,-400.0,0.00025683,2]
[385914558,1758131507725,-400.0,0.00025683,2]
[385914559,1758131507735,-400.0,0.00025683,2]
[385914560,1758131507744,-527.14110532,0.00025683,2]
[385914561,1758131507754,-400.0,0.00025683,2]
[385914562,1758131507764,-400.0,0.00025683,2]
[385914563,1758131507774,-400.0,0.00025683,2]
[385914564,1758131507784,-400.0,0.00025683,2]
[385914565,1758131507793,-1328.41,0.00025683,2]
[385914566,1758131507803,-400.0,0.00025683,2]
[385914567,1758131507815,-400.0,0.00025683,2]
[385914568,1758131507825,-400.0,0.00025683,2]
[385914569,1758131507834,-400.0,0.00025683,2]
[385914570,1758131507844,-400.0,0.00025683,2]
[385914571,1758131507853,-400.0,0.00025683,2]
[385914572,1758131507863,-400.0,0.00025683,2]
[385914573,1758131507873,-836.47,0.00025683,2]
[385914574,1758131507884,-400.0,0.00025683,2]
[385914575,1758131507893,-400.0,0.00025683,2]
[385914576,1758131507903,-400.0,0.00025683,2]
[385914577,1758131507913,-400.0,0.00025683,2]
[385914578,1758131507924,-400.0,0.00025683,2]
[385914579,1758131507933,-556.99,0.00025683,2]
[385914580,1758131507944,-695.12,0.00025683,2]
[385914581,1758131507953,-400.0,0.00025683,2]
[385914582,1758131507963,-400.0,0.00025683,2]
[385914583,1758131507973,-400.0,0.00025683,2]
[385914584,1758131507983,-400.0,0.00025683,2]
[385914585,1758131507995,-400.0,0.00025683,2]
[385914586,1758131508006,-587.98,0.00025683,2]
[385914587,1758131508015,-671.85,0.00025683,2]
[385914588,1758131508025,-844.12,0.00025683,2]
[385914589,1758131508035,-608.32,0.00025683,2]
[385914590,1758131508044,-400.0,0.00025683,2]
[385914591,1758131508054,-906.32,0.00025683,2]
[385914592,1758131508066,-400.0,0.00025683,2]
[385914593,1758131508076,-489.07,0.00025683,2]
[385914594,1758131508085,-260.40991873,0.00025683,2]
[385914595,1758131508095,-400.0,0.00025683,2]
[385914596,1758131508105,-400.0,0.00025683,2]
[385914597,1758131508115,-400.0,0.00025683,2]
[385914598,1758131508124,-400.0,0.00025683,2]
[385914599,1758131508135,-400.0,0.00025683,2]
[385914600,1758131508145,-2034.54,0.00025683,2]
[385914601,1758131508155,-400.0,0.00025683,2]
[385914602,1758131508165,-436.53,0.00025683,2]
[385914603,1758131508175,-400.0,0.00025683,2]
[385914604,1758131508185,-400.0,0.00025683,2]